Cogmind - Beta 15 @@@ ROGUE MODE // 2025.08.02 @ 05:51:07 Player: DURANDAL Result: Destroyed by Y-54 Guardian with Gatling Laser Performance ------------- Evolutions (4) 2000 Regions Visited (7) 1400 Robots Destroyed (28) 140 Value Destroyed (825) 825 Prototype IDs (3) 60 Alien Tech Used (0) 0 Bonus (735) 735 TOTAL SCORE: 5160 Bonus ------- Pacifist 200 Follower Combat Kills 35 Entered DSFs 500 Cogmind --------- Core Integrity 0/850 Matter 54/300 Energy 31/100 System Corruption 0% Temperature Cool (24) Movement Treading (160) Location -6/Factory Parts ------- > --- POWER (2) -------- (None) > --- PROPULSION (4) --- Improved Medium Treads > --- UTILITY (5) ------ Large Storage Unit Improved Terrain Scan Processor Hacking Suite > --- WEAPON (4) ------- (None) > --- INVENTORY (15) --- Improved Medium Treads Improved Medium Treads Improved Medium Treads Large Storage Unit Large Battery (200) Medium Matter Pod (100) Structural Scanner Core Shielding System Restoration Module Mining Laser Peak State ------------ > --- POWER ------------ Ion Engine Light Nuclear Core > --- PROPULSION ------- Xenon Bombardment Thruster Xenon Bombardment Thruster Xenon Bombardment Thruster Xenon Bombardment Thruster > --- UTILITY ---------- Large Storage Unit Improved Sensor Array Improved Terrain Scan Processor Core Shielding Hacking Suite > --- WEAPON ----------- Ion Cannon Heavy Assault Rifle Autogun Autogun > --- INVENTORY -------- Xenon Bombardment Thruster Xenon Bombardment Thruster Xenon Bombardment Thruster Xenon Bombardment Thruster Large Storage Unit Large Battery Medium Matter Pod Structural Scanner Core Shielding Ion Cannon Advanced EMP Blaster Grenade Launcher Mining Laser [Rating: 43] Favorites ----------- Power Improved Ion Engine Engine Improved Ion Engine Power Core Light Nuclear Core Propulsion Light Treads Treads Light Treads Flight Unit Xenon Bombardment Thruster Utility Large Storage Unit Device Improved Sensor Array Storage Large Storage Unit Processor Improved Terrain Scan Processor Hackware Hacking Suite Protection Core Shielding Weapon Autogun Energy Gun Small Laser Energy Cannon Ion Cannon Ballistic Gun Autogun Launcher Grenade Launcher Build | -11 -10 -9 -9 -8 -7 -7 -6 ------- Run | Yrd Mat Mat Min Mat Fac DSF Fac Slots Evolved 8 | . . 2 . 2 2 . 2 Power 1 | . . . . . 1 . . Propulsion 2 | . . 2 . . . . . Utility 3 | . . . . 2 . . 1 Weapon 2 | . . . . . 1 . 1 Parts Attached 41 | 6 2 9 . 6 2 4 12 Power 6 | 1 . 2 . 1 1 . 1 Engine 3 | 1 . 1 . . 1 . . Core 3 | . . 1 . 1 . . 1 Reactor . | . . . . . . . . Propulsion 18 | 2 . 4 . 2 . 4 6 Treads 10 | 2 . 4 . 2 . . 2 Leg . | . . . . . . . . Wheel . | . . . . . . . . Hover . | . . . . . . . . Flight 8 | . . . . . . 4 4 Utility 7 | 1 2 . . 3 . . 1 Device 2 | . . . . 2 . . . Storage 2 | 1 1 . . . . . . Processor 1 | . . . . 1 . . . Hackware 1 | . 1 . . . . . . Protection 1 | . . . . . . . 1 Artifact . | . . . . . . . . Weapon 10 | 2 . 3 . . 1 . 4 Energy Gun 1 | 1 . . . . . . . Energy Cannon 2 | . . . . . . . 2 Ballistic Gun 5 | 1 . 3 . . 1 . . Ballistic Cannon . | . . . . . . . . Launcher 2 | . . . . . . . 2 Special Weapon . | . . . . . . . . Impact Weapon . | . . . . . . . . Slashing Weapon . | . . . . . . . . Piercing Weapon . | . . . . . . . . Special Melee Weapon . | . . . . . . . . Unidentified Prototypes 1 | . . . . 1 . . . Parts Lost 26 | . . 4 . 1 . . 21 Power 5 | . . 1 . 1 . . 3 Propulsion 11 | . . 2 . . . . 9 Utility 2 | . . . . . . . 2 Weapon 8 | . . 1 . . . . 7 Highest Loss Streak 21 | . . 2 . 1 . . 21 To Critical Strikes 1 | . . . . . . . 1 Average Backups 12 | 1 8 12 15 14 14 13 13 Power 1 | . 1 2 2 1 1 . . Propulsion . | . 1 . . 1 2 3 3 Utility 6 | . 4 7 7 6 6 4 5 Weapon 3 | . . 2 5 5 5 5 3 Tool/Special . | . . . . . . . . Unused Backups 14 | . . 3 1 1 . 2 7 Power 2 | . . 1 . 1 . . . Propulsion 1 | . . . . . . 1 . Utility 9 | . . 2 . . . 1 6 Weapon 2 | . . . 1 . . . 1 Tool/Special . | . . . . . . . . Average Slot Usage (%) 96 | . 99 95 100 98 92 100 84 Engine 9 | . 14 6 11 7 . 7 4 Core 1 | . . . . 1 7 7 4 Treads 33 | . 28 43 44 36 30 7 . Flight 3 | . . . . . . 23 21 Device 2 | . . . . 9 7 7 4 Storage 11 | . 20 11 11 9 7 7 6 Processor 2 | . . . . 8 7 7 6 Hackware 9 | . 6 11 11 9 7 7 6 Energy Gun 3 | . 14 4 . . . . . Ballistic Gun 18 | . 14 17 22 18 23 23 14 Peak Build Rating 43 | 6 10 16 17 28 30 39 43 Average Rating 18 | 4 8 13 16 25 29 37 36 On Entrance 18 | . 6 10 16 17 28 30 39 Naked Turns . | . . . . . . . . Heaviest Build 47 | 13 33 33 33 34 40 40 47 Greatest Support 80 | 40 40 80 80 80 80 80 30 Greatest Overweight (x) 6 | . . . . . . 3 6 Average Overweight (x) . | . . . . . . . 1 Largest Inventory Capacity 15 | 8 15 15 15 15 15 15 15 Average Capacity 14 | 7 14 15 15 15 15 15 15 Most Carried 15 | 5 12 15 15 15 14 15 15 Average Carried 12 | 1 8 12 14 14 13 13 12 Final Capacity 15 | 8 15 15 15 15 15 15 15 Final Carried 15 | 1 12 15 15 15 13 15 10 Class Distribution -------------------- 49% | Mutant 37% | Scavenger-Mutant 12% | Scavenger-Skirmisher Dominant Class ---------------- Mutant | -10/Materials Mutant | -9/Materials Scavenger-Mutant | -9/Mines Mutant | -8/Materials Mutant | -7/Factory Scavenger-Skirmisher | -7/DSF Scavenger-Skirmisher | -6/Factory Resources | -11 -10 -9 -9 -8 -7 -7 -6 ----------- Run | Yrd Mat Mat Min Mat Fac DSF Fac Matter Collected 990 | 198 171 317 31 268 . . 5 Remotely . | . . . . . . . . Salvage Created 1023 | . . 568 54 280 . 60 61 Parts 69 | . . 40 8 15 . 3 3 Haulers Intercepted 2 | . . 1 . 1 . . . Recyclers Shooed . | . . . . . . . . Parts Field Recycled . | . . . . . . . . Retrieved Matter . | . . . . . . . . Parts Self-Destructed . | . . . . . . . . Prevented . | . . . . . . . . Kills | -11 -10 -9 -9 -8 -7 -7 -6 ------- Run | Yrd Mat Mat Min Mat Fac DSF Fac Combat Hostiles Destroyed 22 | . . 13 3 4 . 1 1 Guns 21 | . . 13 3 4 . 1 . Cannons 1 | . . . . . . . 1 Classes Destroyed 10 | . . 6 1 2 . 1 . Builder 1 | . . 1 . . . . . Tunneler 1 | . . . 1 . . . . Hauler 2 | . . 1 . 1 . . . Watcher 2 | . . 2 . . . . . Swarmer 7 | . . 4 3 . . . . Grunt 7 | . . 6 . 1 . . . Sentry 4 | . . 3 . 1 . . . Specialist 2 | . . . . . . 1 1 Hunter 1 | . . . . 1 . . . Heavy 1 | . . . . 1 . . . Best Kill Streak 4 | . . 4 3 3 . 1 1 Combat Bots Only 4 | . . 4 3 3 . 1 1 Max Kills in Single Turn 1 | . . 1 1 1 . 1 1 Gunslinging . | . . . . . . . . Exploded . | . . . . . . . . Melee . | . . . . . . . . Uniques/NPCs Destroyed . | . . . . . . . . Combat | -11 -10 -9 -9 -8 -7 -7 -6 -------- Run | Yrd Mat Mat Min Mat Fac DSF Fac Hostile Shots Fired 442 | . . 84 6 31 . 18 303 Missed 137 | . . 18 1 7 . 9 102 Hits 305 | . . 66 5 24 . 9 201 Projectile 305 | . . 66 5 24 . 9 201 Critical Strikes 9 | . . 3 . 1 . . 5 Actively Blocked 1 | . . . . . . . 1 Damage Taken 4005 | . . 762 37 528 . 177 2501 Core 1099 | . . 40 16 165 . 20 858 Absorbed by Shields . | . . . . . . . . Redirected to Shielding 51 | . . . . . . . 51 Core Remaining (%) 90 | 100 100 . 86 70 . 97 . Volleys Fired 101 | . . 51 3 34 . 3 10 Largest 4 | . . 2 2 2 . 3 4 Hottest 150 | . . 60 46 46 . 69 150 Shots Fired 209 | . . 101 6 68 . 9 25 Gun 197 | . . 101 6 68 . 9 13 Cannon 8 | . . . . . . . 8 Launcher 4 | . . . . . . . 4 Special . | . . . . . . . . Kinetic 168 | . . 72 6 68 . 9 13 Thermal 37 | . . 29 . . . . 8 Explosive 3 | . . . . . . . 3 Electromagnetic 1 | . . . . . . . 1 Robot Hit Streak 17 | . . 17 4 8 . 3 7 Robot Miss Streak 7 | . . 7 1 6 . 1 2 Penetration Max . | . . . . . . . . Secondary Targets . | . . . . . . . . Shots Hit Robots 134 | . . 69 4 39 . 5 17 Core Hits 54 | . . 28 5 12 . 2 7 Critical Kills 1 | . . 1 . . . . . Critical Parts Destroyed 1 | . . 1 . . . . . Critical Strikes 2 | . . 2 . . . . . Destroy 2 | . . 2 . . . . . Melee Attacks . | . . . . . . . . Impact . | . . . . . . . . Slashing . | . . . . . . . . Piercing . | . . . . . . . . Sneak Attacks . | . . . . . . . . Combat Hostiles . | . . . . . . . . Follow-up Attacks . | . . . . . . . . Damage Inflicted 2165 | . 4 941 104 580 . 85 451 Guns 1749 | . . 915 61 580 . 85 108 Cannons 93 | . . . . . . . 93 Explosions 250 | . . . . . . . 250 Melee . | . . . . . . . . Ramming 73 | . 4 26 43 . . . . Kinetic 1481 | . . 647 61 580 . 85 108 Thermal 361 | . . 268 . . . . 93 Explosive 152 | . . . . . . . 152 Electromagnetic 98 | . . . . . . . 98 Impact . | . . . . . . . . Slashing . | . . . . . . . . Piercing . | . . . . . . . . Highest Corruption . | . . . . . . . . Average Corruption . | . . . . . . . . Corruption Purged . | . . . . . . . . Corruption Blocked . | . . . . . . . . Overload Shots . | . . . . . . . . Overflow Damage . | . . . . . . . . Projectiles . | . . . . . . . . Explosions . | . . . . . . . . Melee . | . . . . . . . . Knockbacks . | . . . . . . . . Impact . | . . . . . . . . Kinetic . | . . . . . . . . Secondary . | . . . . . . . . Self-Inflicted Damage 93 | . . . . . . . 93 Shots 3 | . . . . . . . 3 Rammed 11 | . 1 4 6 . . . . Targets Rammed 13 | . 1 5 7 . . . . Kicked . | . . . . . . . . Crushed 2 | . . 1 1 . . . . Highest Temperature 280 | . . 19 4 32 . . 280 Average Temperature 79 | . . 6 2 14 . . 146 Received Heat Transfer 789 | . . 270 . 72 . . 447 Siege Activations . | . . . . . . . . Martial Activations . | . . . . . . . . Shielding Activations . | . . . . . . . . Robots Disrupted . | . . . . . . . . Combat Hostiles . | . . . . . . . . Robots Corrupted . | . . . . . . . . Combat Hostiles . | . . . . . . . . Parts Fried . | . . . . . . . . Impact Corruptions . | . . . . . . . . Robots Melted . | . . . . . . . . Combat Hostiles . | . . . . . . . . Parts Melted . | . . . . . . . . Heat Transferred 748 | . . 600 . . . . 148 Parts Sabotaged . | . . . . . . . . Parts Stolen . | . . . . . . . . Parts Stripped . | . . . . . . . . Power Chain Reactions . | . . . . . . . . Alert | -11 -10 -9 -9 -8 -7 -7 -6 ------- Run | Yrd Mat Mat Min Mat Fac DSF Fac Maximum Alert Level 1 | . . 1 . . . . . Low Security (%) 99 | 100 100 99 100 100 100 100 100 Level 1 . | . . . . . . . . Level 2 . | . . . . . . . . Level 3 . | . . . . . . . . Level 4 . | . . . . . . . . Level 5 . | . . . . . . . . High Security . | . . . . . . . . Max Security . | . . . . . . . . Peak Influence 204 | . 4 204 81 85 21 64 35 Initial 33 | . . . 31 . 21 14 33 Average 33 | . . 120 6 17 21 44 6 Influence Increases 807 | . 4 439 75 167 . 50 72 Destroy 0b10 Robot/C 460 | . . 260 60 100 . 20 20 Destroy 0b10 Robot/NC 35 | . . 20 5 10 . . . Destroy Leader 130 | . . 76 10 34 . . 10 Allied During Kill 6 | . . . . 6 . . . Successful Hack 38 | . 4 22 . . . . 12 Disable Machine 15 | . . . . 15 . . . Destroy Structure 18 | . . 1 . 2 . . 15 Lose Combat Pursuer 105 | . . 60 . . . 30 15 Influence Decreases 807 | . 4 356 158 120 26 7 136 Entered New Map 116 | . . . 52 . 26 7 31 Time Decay 571 | . 4 316 106 85 . . 60 Lost Part 95 | . . 40 . 10 . . 45 Lost Ally 25 | . . . . 25 . . . Squads Dispatched 7 | . . 1 . 2 . 1 3 Investigation . | . . . . . . . . Extermination 1 | . . . . . . . 1 Reinforcement 6 | . . 1 . 2 . 1 2 Assault . | . . . . . . . . Garrison . | . . . . . . . . Intercept . | . . . . . . . . Searches Triggered . | . . . . . . . . Construction Impeded . | . . . . . . . . Haulers Reinforced 1 | . . . . . . . 1 Active Scanning Responses . | . . . . . . . . Cargo Convoy Interrupts . | . . . . . . . . Stealth | -11 -10 -9 -9 -8 -7 -7 -6 --------- Run | Yrd Mat Mat Min Mat Fac DSF Fac Distress Signals 5 | . 1 4 . . . . . Communications Jammed . | . . . . . . . . Distress Signals . | . . . . . . . . Times Spotted 52 | . 2 24 3 11 . 4 8 Peak Tracking Total 7 | . 1 7 3 3 . 1 5 Tactical Retreats 6 | . . 3 . . . 2 1 Traps | -11 -10 -9 -9 -8 -7 -7 -6 ------- Run | Yrd Mat Mat Min Mat Fac DSF Fac Traps Triggered . | . . . . . . . . Indirectly . | . . . . . . . . Trap Hack Attempts . | . . . . . . . . Triggered . | . . . . . . . . Disarmed . | . . . . . . . . Reprogrammed . | . . . . . . . . Reused . | . . . . . . . . Traps Extracted . | . . . . . . . . Installed . | . . . . . . . . Triggered . | . . . . . . . . Machines | -11 -10 -9 -9 -8 -7 -7 -6 ---------- Run | Yrd Mat Mat Min Mat Fac DSF Fac Machines Disabled 1 | . . . . 1 . . . Max in Single Turn 1 | . . . . 1 . . . Machines Repaired . | . . . . . . . . Machines Dismantled . | . . . . . . . . Machines Sabotaged . | . . . . . . . . Overloaded Fab Kills . | . . . . . . . . Hacking | -11 -10 -9 -9 -8 -7 -7 -6 --------- Run | Yrd Mat Mat Min Mat Fac DSF Fac Machines Accessed 17 | . 6 6 2 . 1 . 2 Terminals 16 | . 6 6 1 . 1 . 2 Fabricators . | . . . . . . . . Repair Stations . | . . . . . . . . Recycling Units . | . . . . . . . . Scanalyzers . | . . . . . . . . Garrison Access . | . . . . . . . . Total Hacks 39 | . 15 17 2 . 2 . 3 Successful 17 | . 4 8 2 . 1 . 2 Failed 22 | . 11 9 . . 1 . 1 Catastrophic 2 | . 1 1 . . . . . Database Lockouts . | . . . . . . . . Manual 35 | . 15 15 2 . . . 3 Terminals 38 | . 15 17 1 . 2 . 3 Fabricators . | . . . . . . . . Repair Stations . | . . . . . . . . Recycling Units . | . . . . . . . . Scanalyzers . | . . . . . . . . Garrison Access . | . . . . . . . . Terminal Hacks 5 | . 1 2 1 . 1 . . Prototype ID Bank 1 | . . 1 . . . . . Open Door 1 | . . . 1 . . . . Open DSF 1 | . . . . . 1 . . Branch Access Points 1 | . . 1 . . . . . Hauler Manifests 1 | . 1 . . . . . . Fabricator Hacks . | . . . . . . . . Repair Station Hacks . | . . . . . . . . Recycling Unit Hacks . | . . . . . . . . Scanalyzer . | . . . . . . . . Garrison Access Hacks . | . . . . . . . . Unauthorized Hacks 12 | . 3 6 1 . . . 2 Terminals 12 | . 3 6 1 . . . 2 Track 1 | . . 1 . . . . . Botnet 11 | . 3 5 1 . . . 2 Fabricators . | . . . . . . . . Repair Stations . | . . . . . . . . Recycling Units . | . . . . . . . . Scanalyzers . | . . . . . . . . Garrison Access . | . . . . . . . . Data Cores Recovered . | . . . . . . . . Used . | . . . . . . . . Hacking Detections 10 | . 4 4 1 . . . 1 Full Trace Events 3 | . 2 1 . . . . . Feedback Events . | . . . . . . . . Feedback Blocked . | . . . . . . . . Robot Schematics Acquired . | . . . . . . . . Robots Built . | . . . . . . . . Authchips . | . . . . . . . . Time . | . . . . . . . . Total Robot Build Rating . | . . . . . . . . Part Schematics Acquired . | . . . . . . . . Parts Built . | . . . . . . . . Authchips . | . . . . . . . . Time . | . . . . . . . . Total Part Build Rating . | . . . . . . . . Parts Repaired . | . . . . . . . . Time . | . . . . . . . . Parts Recycled . | . . . . . . . . Recycled Matter . | . . . . . . . . Retrieved Matter . | . . . . . . . . Retrieved Components . | . . . . . . . . Parts Scanalyzed . | . . . . . . . . Part Schematics Acquired . | . . . . . . . . Parts Damaged . | . . . . . . . . Bothacking | -11 -10 -9 -9 -8 -7 -7 -6 ------------ Run | Yrd Mat Mat Min Mat Fac DSF Fac Used RIF Installer . | . . . . . . . . Robots Hacked . | . . . . . . . . Non-combat . | . . . . . . . . Combat . | . . . . . . . . Robot Hacks Applied . | . . . . . . . . Relay Couplers Released . | . . . . . . . . Fabnet Peak Effective % . | . . . . . . . . Robots Rewired . | . . . . . . . . Allies Hacked . | . . . . . . . . Hacks Repelled . | . . . . . . . . Allies | -11 -10 -9 -9 -8 -7 -7 -6 -------- Run | Yrd Mat Mat Min Mat Fac DSF Fac Total Allies 3 | . . . 3 . . . . Largest Group 3 | . . . 3 3 . . . Highest-Rated Group 40 | . . . 40 40 . . . Highest-Rated Ally 16 | . . . 16 16 . . . Total Orders . | . . . . . . . . Ally Attacks 37 | . . . . 37 . . . Total Damage 362 | . . . . 362 . . . Kills 2 | . . . . 2 . . . Allies Corrupted . | . . . . . . . . Allies Melted . | . . . . . . . . Intel | -11 -10 -9 -9 -8 -7 -7 -6 ------- Run | Yrd Mat Mat Min Mat Fac DSF Fac Active Infowar (turns) 847 | . . . . 405 6 151 285 Sensors 847 | . . . . 405 6 151 285 Robot Analysis Total . | . . . . . . . . Derelict Logs Recovered 2 | . . . 2 . . . . Drone Launches . | . . . . . . . . Drone Recoveries . | . . . . . . . . Exploration | -11 -10 -9 -9 -8 -7 -7 -6 ------------- Run | Yrd Mat Mat Min Mat Fac DSF Fac Turns Passed 3325 | 61 504 732 1105 406 6 151 360 Spaces Moved 1879 | 39 303 323 674 186 3 103 248 Core 15 | 12 . . . . . . 3 Treads 1526 | 27 303 323 674 186 3 7 3 Legs . | . . . . . . . . Wheels . | . . . . . . . . Hover . | . . . . . . . . Flight 338 | . . . . . . 96 242 Fastest Speed 50 | 50 160 160 160 160 165 111 111 Average Speed 152 | 126 160 160 160 163 165 117 121 Slowest Speed 350 | 160 160 160 160 165 165 317 350 Overloaded Moves . | . . . . . . . . Propulsion Burnouts . | . . . . . . . . Robots Hopped . | . . . . . . . . Potential Cave-ins . | . . . . . . . . Cave-ins Triggered . | . . . . . . . . Exploration Rate (%) 45 | 4 83 37 96 26 . 63 9 Regions Visited 7 Branch Regions 1 Pre-discovered Areas 1 | . . . 1 . . . . Known Exits Taken 3 | . . 1 . 1 1 . . Unknown Exits Taken 3 | 1 1 . 1 . . . . Scrap Searched 2 | . . . 2 . . . . Spaces Dug . | . . . . . . . . Terrain Destroyed 14 | . . . . . . . 14 Melee . | . . . . . . . . Projectile . | . . . . . . . . AOE 14 | . . . . . . . 14 Terrain Rammed . | . . . . . . . . Walls Destroyed . | . . . . . . . . Machines Disabled . | . . . . . . . . Actions | -11 -10 -9 -9 -8 -7 -7 -6 --------- Run | Yrd Mat Mat Min Mat Fac DSF Fac Total 2165 | 51 321 443 692 235 4 129 290 Wait 59 | . 4 34 7 1 . . 13 Move 1872 | 38 302 322 673 185 2 102 248 Hop . | . . . . . . . . Pick Up 59 | 7 12 15 1 6 . 11 7 Fast Attach . | . . . . . . . . Attach 30 | 6 1 6 . 3 2 . 12 Detach . | . . . . . . . . Swap 12 | . 1 4 . 3 . 4 . Drop 19 | . . 6 1 3 . 9 . Fire 101 | . . 51 3 34 . 3 10 Melee . | . . . . . . . . Ram . | . . . . . . . . Kick . | . . . . . . . . Crush 13 | . 1 5 7 . . . . Escape Stasis . | . . . . . . . . Rewire . | . . . . . . . . Trap . | . . . . . . . . Miscellaneous . | . . . . . . . . Route ------- -11/Scrapyard -10/Materials (discovered 4 exits: *Mat x2 / [*Min x2]) -9/Materials (discovered 5 exits: [*Mat] / *Min x2 / *Sto x2) -9/Mines (discovered 2 exits: [*Mat x2]) -8/Materials (discovered 2 exits: *Fac x2) -7/Factory -7/DSF -6/Factory History --------- Turn | Location | Event 30 | -11/Scrapyard | Discovered new exit (range 16) 62 | -11/Scrapyard | Entered Materials 275 | -10/Materials | Discovered new exit (range 8) 332 | -10/Materials | Build established: Mutant 378 | -10/Materials | Discovered new exit (range 16) 488 | -10/Materials | Discovered new exit (range 3) 542 | -10/Materials | Discovered new exit (range 6) 566 | -10/Materials | Entered another Materials area 566 | -9/Materials | Evolved 2 slots: Propulsion x2 578 | -9/Materials | Discovered new exit (range 15) 1021 | -9/Materials | Discovered new exit (range 16) 1090 | -9/Materials | Identified exit to Mines 1090 | -9/Materials | Identified exit to Storage 1298 | -9/Materials | Entered Mines 1331 | -9/Mines | Met a Derelict bent on vengeance 1350 | -9/Mines | Learned location of Storage (-9) 1364 | -9/Mines | Learned 2 Materials zone layouts 1534 | -9/Mines | Build established: Scavenger-Mutant 1535 | -9/Mines | Assisted by bots powering up and referring to "LRC-V3" 1557 | -9/Mines | Found the Drone Emporium 1567 | -9/Mines | Found Prototype Device 1585 | -9/Mines | Discovered new exit (range 11) 2377 | -9/Mines | Discovered new exit (range 8) 2403 | -9/Mines | Entered Materials 2403 | -8/Materials | Accompanied by 3 allies 2403 | -8/Materials | Evolved 2 slots: Utility x2 2403 | -8/Materials | Identified Splice Drone Bay 2404 | -8/Materials | Identified exit to Factory 2749 | -8/Materials | Discovered exit to Factory (range 15) 2793 | -8/Materials | Build established: Mutant 2809 | -8/Materials | Entered Factory 2809 | -7/Factory | Evolved 2 slots: Power x1, Weapon x1 2815 | -7/Factory | Identified exit to DSF 2815 | -7/Factory | Entered DSF 2863 | -7/DSF | Additional patrols routed to DSF 2910 | -7/DSF | Discovered new exit (range 16) 2966 | -7/DSF | Entered Factory 2966 | -6/Factory | Evolved 2 slots: Utility x1, Weapon x1 3096 | -6/Factory | Build established: Scavenger-Skirmisher 3282 | -6/Factory | Spotted B-75 Beast 3295 | -6/Factory | Core integrity fell below 50% 3315 | -6/Factory | Core integrity fell below 20% 3326 | -6/Factory | Destroyed by Y-54 Guardian with Gatling Laser Last Messages --------------- 03264_ M-28 Smith repairs Y-54 Guardian. 03273_ Xenon Bombardment Thruster destroyed. 03284_ Core Shielding destroyed. 03286_ K-01 Serf cleans the Pressure Siphon. 03297_ U-05 Engineer builds a Door. 03301_ Xenon Bombardment Thruster destroyed. 03302_ ALERT: Potential suspicious activity detected, Programmers report to Factory Zone 8W. 03302_ Acquired Imp. Medium Treads. 03305_ M-28 Smith repairs G-50 Soldier. 03310_ Acquired Imp. Medium Treads. 03315_ M-28 Smith repairs G-50 Soldier. 03316_ Door malfunctions. 03320_ Acquired Corrupted Imp. Medium Treads. 03320_ Adv. EMP Blaster destroyed. 03322_ Acquired Corrupted Imp. Medium Treads. 03325_ Imp. Medium Treads destroyed. 03325_ Acquired Corrupted Imp. Medium Treads. Map ----- +----------------------------------------------------+ | ????????????????????????????????????? ?????????# | | ????????????????????????????????????? ?????????# | | ????????????????????????????????????? ?????????# | | ???????????????????????????????????# ?????????# | | ???????????????????????????????????# ?????????# | | ???????????????????????????????????# #????????# | | ???????????????????????????????????? #######?# | | ??????????????????????H?????????????? # ### | | ????????????????????????????????????? | | ????????????????????????????????????? # / | | ????????????????????????????????????? # | | ?????????????????????????????????????# ## | | ?????????????????????????????????????# ## | | ???????????????????????#######?+###### #### # # | | ??????????????????????? #? # # ## | | ???????????????????????" #? # # ## | | ???????????????????????Y ## # / + | | ????????????????????#?"" ## # # ## | | ????????????????????# ## # # ## | | ????????????????????# """ ## # " ## | | ????????????????????# """ ## # # ## | | ????????????????????# """ ## ###### ## | | ????????????????????# ## ###### ########### | | ????????????????????# ## #?????????? | | ????????????????????# ## #?????????? | | ???????????????????## @ ## *= #?????????? | | ???????????????????# Y g## *= #?????????? | | ???????????????????## == sx #?????????? | | ????????????????????# # #?????????? | | ????????????????????#####Y#### k #?????????? | | ????????????????????????u #?????????? | | ??????????????????????? #?????????? | | ?????????????????????? ""% """ #?????????? | | ????????????????????+ """ """ #?????????? | | ????????????????????? """ """ #?????????? | | ????????????????????# """ """ [/ #?????????? | | ????????????????????# ? [/ #?????????? | | ????????????????????# ??? ?? [/ #?????????? | | ????????????????????# ??????? #?????????? | | ????????????????????#???????? #?????????? | | ???????????????????????????? ?????????? | | ????????????????????????????? ###?????????? | | ????????????????????????????? ???????????? | | ?????????????????????????????? ?????????????? | | ?????????????????????????????????????????????????? | | ?????????????????????????????????????????????????? | | ?????????????????????????????????????????????????? | | ?????????????????????????????????????????????????? | | ?????????????????????????????????????????????????? | | ?????????????????????????????????????????????????? | +----------------------------------------------------+ Best States ------------- Heat Dissipation 37 Energy Generation 19 Energy Capacity 310 Matter Stores 300 Matter Capacity 300 Sight Range 16 Robot Scan Range 15 Terrain Scan Density 110 Core Shielding 20 Evasion (%) 40 Recoil Reduction 4 Offensive Hacking 10 Item Schematics ----------------- None Robot Schematics ------------------ None Fabricated ------------ Nothing Repaired ---------- Nothing Alien Tech Used ----------------- None Achievements -------------- Quantum Hacking Challenges ------------ None Game ------ Seed ShiftAssaultStrikerail Manual? 0 Play Time 00:43:59 Cumulative 25.3 hours Start 2025.08.01 @ 23:45:32 End 2025.08.02 @ 05:51:07 Sessions 3 Manual Loads 0 Difficulty Rogue Special Mode None Game No. 48 Rogue 48 Adventurer 0 Explorer 0 Win Type - Total 0 Types 0/0/0/0/0/0/0/0/0/0 Lore% 19 Gallery% 18 Achievement% 19 Wizard Run 0 Options --------- Layout 1 ASCII 0 Keyboard 0 Movement Numpad Keybinds 0 Fullscreen 1 Font 32/SmallcapsGlow Map View 50x35 Zoom Use 0% Tactical HUD 1 Map Filters NONE Filters NONE Steam 1 RUN: fd0dada9-635c-4ce6-9bc3-d87fa24a2a61